bitfinex-derivatives/quotes_ETHF0:USTF0_20260213
["timestamp","ask_amount","ask_price","bid_price","bid_amount"]
[1770941823402,0.76289659,1944.9,1943.6,1.03505848]
[1770941824104,11.45330365,1945.0,1943.8,1.03092638]
[1770941824105,0.00530365,1945.0,1943.8,1.03092638]
[1770941824502,0.76272612,1945.0,1943.8,1.03092638]
[1770941825402,0.75846984,1944.9,1943.8,1.03092638]
[1770941825595,0.75846984,1944.7,1943.8,1.03092638]
[1770941826104,0.74160341,1944.5,1943.6,1.03505848]
[1770941826304,0.73864165,1943.7,1942.6,1.03092638]
[1770941826703,0.73864165,1944.0,1942.6,1.03092638]
[1770941827004,0.73864165,1943.8,1942.6,1.03092638]
[1770941827404,0.73864165,1943.8,1942.6,1.03544098]
[1770941827998,0.79400502,1944.2,1942.6,1.03544098]
[1770941828203,0.79400502,1944.0,1942.6,1.03544098]
[1770941829504,0.79615566,1943.8,1942.6,1.03544098]
[1770941830400,0.8001467,1943.6,1942.6,1.03544098]
[1770941830612,0.8001467,1943.5,1942.6,1.03544098]
[1770941831206,0.00590031,1943.6,1942.6,1.03544098]
[1770941831409,0.80704375,1943.6,1942.9,1.03092638]
[1770941832814,0.80704375,1943.6,1942.7,1.03092638]
[1770941834410,0.00590031,1943.6,1942.7,1.03092638]
[1770941834610,0.8082144,1944.0,1942.7,1.03092638]
[1770941835608,0.81477555,1944.0,1942.7,1.03092638]
[1770941836012,0.00656115,1944.0,1942.7,1.03092638]
[1770941837214,0.79256262,1944.0,1942.7,1.03092638]
[1770941842221,0.00656115,1944.0,1942.7,1.03092638]
[1770941842519,0.74619051,1944.0,1942.7,1.03092638]
[1770941843924,0.74051598,1944.5,1943.3,1.03092638]
[1770941844121,0.74051598,1944.5,1943.5,1.03092638]
[1770941844821,0.2573,1944.9,1943.5,1.03092638]
[1770941845024,0.7478984,1944.8,1943.5,1.03092638]
[1770941845224,0.7478984,1944.8,1943.7,1.03092638]
[1770941846527,0.7478984,1944.8,1943.9,1.03092638]
[1770941848120,0.74046252,1944.6,1943.3,1.03092638]
[1770941848319,0.74046252,1944.4,1943.3,1.03092638]
[1770941854725,3.77390572,1944.5,1943.3,1.03092638]
[1770941855031,0.74717133,1944.5,1943.3,1.03092638]
[1770941855726,0.74717133,1944.5,1943.5,1.1141613]
[1770941856730,0.7458748,1944.8,1943.5,1.1141613]
[1770941856931,0.7458748,1944.8,1943.7,1.1141613]
[1770941860121,0.00474028,1944.9,1943.9,1.1141613]
[1770941860531,0.74099126,1944.9,1943.9,1.1141613]
[1770941861332,0.00474028,1944.9,1944.7,4.75875524]
[1770941861527,0.73689788,1945.3,1944.7,1.11802129]
[1770941862531,0.74337981,1945.3,1944.7,1.11802129]
[1770941864734,0.74337981,1945.3,1944.7,0.00385999]
[1770941865036,0.74337981,1945.3,1944.4,1.1141613]
[1770941865936,0.74337981,1945.3,1944.4,1.11997247]
[1770941868628,0.74337981,1945.3,1943.0,1.14996024]
[1770941868629,0.25741,1944.1,1943.0,1.14996024]
[1770941868937,18.42091146,1944.0,1943.0,1.14996024]
[1770941869235,0.00122234,1943.8,1943.0,1.14996024]
[1770941869737,0.00552244,1943.8,1943.2,1.14999655]
[1770941870141,0.00135388,1943.7,1943.2,1.14999655]
[1770941870631,0.00693527,1943.8,1943.3,1.14993078]
[1770941870833,0.0043001,1943.8,1943.3,1.14993078]
[1770941871036,0.0043001,1943.8,1943.5,1.14999813]
[1770941871337,0.00806296,1943.8,1943.1,1.14999813]
[1770941871527,0.00806296,1943.8,1943.2,1.14999813]
[1770941872135,0.00157859,1943.7,1943.2,1.14999813]
[1770941872537,0.00157859,1943.7,1943.3,1.15172727]
[1770941872928,0.00587869,1943.8,1943.3,1.15172727]
[1770941874241,0.52697291,1942.6,1941.4,1.1141613]
[1770941874434,0.52697291,1942.4,1941.4,1.1141613]
[1770941874639,0.52697291,1942.4,1941.5,1.1141613]
[1770941875033,0.80537681,1942.3,1941.5,1.1141613]
[1770941875238,1.33221743,1942.2,1941.5,1.11962953]
[1770941875533,1.33386403,1942.1,1941.6,1.1141613]
[1770941875841,0.80537681,1942.0,1941.6,1.1141613]
[1770941876036,0.80537681,1941.9,1941.6,1.1141613]
[1770941876241,0.80537681,1941.8,1941.6,1.1141613]
[1770941876437,0.52848722,1942.1,1941.5,0.00546823]
[1770941876438,0.00409286,1942.3,1941.8,1.1141613]
[1770941876943,0.53735119,1942.5,1941.9,1.1141613]
[1770941877444,0.00141917,1942.9,1941.9,1.1141613]
[1770941877640,0.00141917,1942.9,1942.2,2.29777308]
[1770941877840,0.00141917,1942.8,1942.2,2.29777308]
[1770941878242,0.00141917,1942.8,1942.0,1.15548283]
[1770941879343,0.00141917,1942.8,1942.1,1.15760212]
[1770941879644,0.00141917,1942.8,1941.9,1.15760212]
[1770941881043,0.00562019,1942.9,1941.9,1.15760212]
[1770941881246,0.00562019,1942.9,1942.2,1.15453476]
[1770941881455,0.00905015,1941.9,1940.2,1.15453476]
[1770941881742,0.00468952,1941.3,1939.6,1.41744919]
[1770941882049,2.2967112,1941.3,1940.0,1.15944919]
[1770941882347,0.01531027,1941.6,1940.5,1.15507611]
[1770941882553,0.02181553,1941.6,1940.5,1.16163563]
[1770941882852,0.02181553,1941.6,1940.8,1.15507611]
[1770941883446,0.02181553,1941.6,1940.9,2.61104287]
[1770941883745,0.01697064,1941.5,1940.9,1.15516884]
[1770941885051,0.00650526,1941.6,1940.9,2.61104287]
[1770941885353,0.00650526,1941.6,1940.9,1.15516884]
[1770941885547,0.00650526,1941.6,1941.0,1.16483349]
[1770941886144,0.01039044,1941.6,1941.0,1.16483349]
[1770941888251,0.00650526,1941.6,1941.0,1.16483349]
[1770941888448,0.25787,1940.6,1939.4,1.1964548]
[1770941888748,2.29202168,1940.4,1939.4,1.1964548]
[1770941888956,2.29202168,1940.1,1939.4,1.1964548]
[1770941889254,0.80632697,1940.0,1939.4,1.1964548]
[1770941889451,0.00436044,1940.0,1939.4,1.20122645]
[1770941890150,0.00436044,1940.0,1939.7,2.65282805]
[1770941890341,2.54988168,1940.7,1939.8,1.19695402]
[1770941890646,0.8062332,1940.6,1939.8,1.19695402]
[1770941890852,0.8062332,1940.5,1939.8,1.19695402]
[1770941891152,0.8062332,1940.4,1939.8,1.19695402]
[1770941891348,0.8062332,1940.3,1939.8,1.19695402]
[1770941891548,0.00504952,1940.4,1939.8,1.19695402]
[1770941891853,8.41132917,1940.7,1939.8,1.19695402]
[1770941892052,8.66918917,1940.7,1939.8,1.19695402]
[1770941892755,2.29202168,1940.4,1939.5,1.19660233]
[1770941892950,2.29869805,1940.4,1939.5,1.19660233]
[1770941893349,2.29869805,1940.4,1939.6,1.45587403]
[1770941893751,2.29869805,1940.4,1939.6,2.65258938]
[1770941894557,0.00667637,1940.4,1939.8,1.19799354]
[1770941895057,2.29202168,1941.0,1940.2,2.65397795]
[1770941895253,13.51902168,1941.0,1940.2,1.19810392]
[1770941896155,13.52339136,1941.0,1940.2,1.19810392]
[1770941896750,2.29639136,1941.0,1940.3,1.20782534]
[1770941897556,0.00436968,1941.0,1940.3,1.20782534]
[1770941897856,0.00436968,1941.0,1940.6,1.45587403]
[1770941898055,0.00436968,1941.0,1940.5,1.20793788]
[1770941898256,0.00436968,1941.0,1940.7,1.45587403]
[1770941898456,0.00436968,1941.0,1940.5,1.20793788]
[1770941899865,0.00436968,1941.0,1940.5,0.70793788]
[1770941900160,0.39676791,1941.0,1940.5,0.70793788]
[1770941903355,0.00436968,1941.0,1940.5,0.70793788]
[1770941903959,0.80588351,1940.9,1940.5,0.70793788]
[1770941904265,0.80588351,1940.8,1940.5,0.37269035]
[1770941904466,0.80588351,1940.7,1940.5,0.37269035]
[1770941904667,0.80588351,1940.6,1940.5,0.37269035]
[1770941905066,0.74157147,1941.2,1940.5,0.37269035]
[1770941905867,0.74364383,1941.4,1940.5,0.37269035]
[1770941906069,0.74782606,1941.4,1940.5,0.37269035]
[1770941909169,5.07661461,1941.3,1940.5,0.37269035]
[1770941909371,0.74782606,1941.4,1940.5,0.37269035]
[1770941909573,5.07719577,1941.3,1940.5,0.37269035]
[1770941909772,0.74782606,1941.4,1940.5,0.37269035]
[1770941910073,5.07833063,1941.3,1940.5,0.37269035]
[1770941910371,0.74782606,1941.4,1940.5,0.37269035]
[1770941910571,5.07897425,1941.3,1940.5,0.37269035]
[1770941910772,0.74782606,1941.4,1940.5,0.37269035]
[1770941910972,5.07898864,1941.3,1940.5,0.37269035]
[1770941911173,0.74782606,1941.4,1940.5,0.37269035]
[1770941911473,5.07915793,1941.3,1940.5,0.37269035]
[1770941912261,6.03211447,1941.7,1940.5,0.37269035]
[1770941912262,3.78191942,1941.8,1940.5,0.37269035]
[1770941912568,5.08831772,1941.7,1940.5,0.37269035]
[1770941912769,5.08831772,1941.6,1940.7,1.1122935]
[1770941912970,0.73533286,1941.8,1940.7,1.1122935]
[1770941913174,5.80941365,1941.7,1940.7,1.1122935]
[1770941913471,0.74332143,1941.7,1940.7,1.1122935]
[1770941914467,2.29202168,1941.6,1940.7,1.1122935]
[1770941914674,0.74975011,1941.5,1940.7,1.1122935]
[1770941915865,0.75454615,1941.7,1940.7,1.1122935]
[1770941916566,0.74823445,1941.5,1940.7,1.1122935]
[1770941916974,0.71698916,1941.4,1940.7,1.1122935]
[1770941917176,0.71698916,1941.3,1940.7,1.1122935]
[1770941917368,0.7490281,1941.5,1940.7,1.1122935]
[1770941917568,0.71695313,1941.4,1940.7,1.1122935]
[1770941917774,0.71695313,1941.3,1940.7,1.1122935]
[1770941918075,0.7490281,1941.5,1940.7,1.1122935]
[1770941918275,0.69912483,1941.4,1940.7,1.1122935]
[1770941918572,0.76376521,1941.7,1940.7,1.1122935]
[1770941919270,1.18564252,1941.7,1940.7,1.1122935]
[1770941920365,0.00397863,1941.7,1940.7,1.1122935]
[1770941921673,1.18564252,1941.7,1940.7,1.1122935]
[1770941924071,0.00397863,1941.7,1940.7,1.1122935]
[1770941926274,1.18564252,1941.7,1940.7,1.1122935]
[1770941930577,0.65209422,1941.6,1940.7,1.1122935]
[1770941930780,1.18564252,1941.7,1940.7,1.1122935]
[1770941930979,0.65207471,1941.6,1940.7,1.1122935]
[1770941931178,1.18564252,1941.7,1940.7,1.1122935]
[1770941931375,0.65207519,1941.6,1940.7,1.1122935]
[1770941931574,1.18564252,1941.7,1940.7,1.1122935]
[1770941931770,0.65209719,1941.6,1940.7,1.1122935]
[1770941931974,1.18564252,1941.7,1940.7,1.1122935]
[1770941932179,0.65209825,1941.6,1940.7,1.1122935]
[1770941932382,1.18564252,1941.7,1940.7,1.1122935]
[1770941932681,0.65234922,1941.6,1940.7,1.1122935]
[1770941932881,1.18564252,1941.7,1940.7,1.1122935]
[1770941933183,0.65237993,1941.6,1940.7,1.1122935]
[1770941933478,1.18564252,1941.7,1940.7,1.1122935]
[1770941933679,1.83428952,1941.6,1940.7,1.1122935]
[1770941933879,0.65262563,1941.5,1940.7,1.1122935]
[1770941934082,1.18166389,1941.6,1940.7,1.1122935]
[1770941934284,0.65182954,1941.5,1940.7,1.1122935]
[1770941934581,1.18166389,1941.6,1940.7,1.1122935]
[1770941934775,0.65159162,1941.5,1940.7,1.1122935]
[1770941934980,1.18166389,1941.6,1940.7,1.1122935]
[1770941935581,1.18166389,1941.4,1940.7,1.1122935]
[1770941935783,1.18166389,1941.6,1940.7,1.1122935]
[1770941935979,1.81501784,1941.5,1940.7,1.1122935]
[1770941936183,1.18166389,1941.5,1940.7,1.1122935]
[1770941936787,0.00397863,1941.7,1940.7,1.1122935]
[1770941936988,0.63333188,1941.6,1940.7,1.1122935]
[1770941937287,1.18564252,1941.7,1940.7,1.1122935]
[1770941937487,0.63342377,1941.6,1940.7,1.1122935]
[1770941937786,15.54995552,1942.6,1941.1,1.1122935]
[1770941937787,1.18166389,1942.1,1941.1,1.1122935]
[1770941937982,0.63356155,1942.0,1941.1,1.1122935]
[1770941938288,1.18166389,1942.1,1941.1,1.1122935]
[1770941938489,0.61632677,1942.0,1941.3,1.1122935]
[1770941938686,4.22825045,1942.5,1941.5,1.1122935]
[1770941938987,1.18166389,1942.7,1941.7,1.1122935]
[1770941939784,1.1862187,1942.7,1941.7,1.1122935]
[1770941940589,1.1961944,1942.5,1941.7,1.1122935]
[1770941943291,1.20074921,1942.7,1941.7,1.1122935]
[1770941943790,1.1961944,1942.4,1941.4,1.1211436]
[1770941943991,1.1961944,1942.2,1941.4,1.1211436]
[1770941945596,1.1961944,1942.4,1941.4,1.1211436]
[1770941947688,1.20074921,1942.7,1941.7,1.1211436]
[1770941947893,1.1961944,1943.0,1941.9,1.1211436]
[1770941948598,1.1961944,1942.6,1941.7,1.1211436]
[1770941948898,1.1961944,1942.4,1941.7,1.1211436]
[1770941951599,1.20244444,1942.6,1941.7,1.1211436]
[1770941951796,0.00625004,1942.6,1941.7,1.3788536]
[1770941952394,1.1961944,1943.1,1941.9,1.3788336]
[1770941953501,1.20051641,1943.1,1941.9,1.3788336]
[1770941959504,0.00432201,1943.1,1942.2,1.1211436]
[1770941959999,0.00432201,1943.1,1941.9,14.03603763]
[1770941960000,0.00432201,1943.1,1942.4,1.1211436]
[1770941960500,0.00432201,1943.1,1942.4,6.4061436]
[1770941960701,0.00432201,1943.1,1942.5,1.1211436]
[1770941960903,1.1961944,1943.5,1942.5,1.1211436]
[1770941961106,1.1961944,1943.7,1942.5,1.1211436]
[1770941961900,1.20153599,1943.7,1942.5,1.1211436]
[1770941963404,1.1961944,1943.5,1942.5,1.1211436]
[1770941964203,1.1961944,1943.5,1942.2,1.1211436]
[1770941964808,1.1961944,1943.3,1942.2,1.1211436]
[1770941965902,1.1961944,1943.3,1942.2,1.3787936]
[1770941971013,1.1961944,1943.3,1942.2,1.1211436]
[1770941972312,1.19617539,1943.1,1942.2,1.1211436]
[1770941973310,1.20455695,1942.9,1942.2,1.1211436]
[1770941973510,1.20455695,1942.9,1941.7,7.95440763]
[1770941973511,1.20455695,1942.9,1941.8,1.19613919]
[1770941973711,1.20455695,1942.9,1941.6,7.69669763]
[1770941973920,1.20455695,1942.5,1941.4,1.19613919]
[1770941974210,1.20455695,1942.3,1941.4,1.19613919]
[1770941974417,0.00383385,1942.3,1941.4,1.19613919]
[1770941976809,1.2083908,1942.3,1941.4,1.19613919]
[1770941982613,1.20455695,1942.1,1941.0,1.19613919]
[1770941982815,1.20455695,1941.9,1941.0,1.19613919]
[1770941983112,1.20455695,1941.9,1940.5,1.19613919]
[1770941983816,1.20455695,1941.9,1940.5,1.20164385]
[1770941985218,1.20455695,1941.7,1940.5,1.20164385]
[1770941988313,1.20455695,1941.5,1940.5,1.20164385]
[1770942001535,1.17423,1941.8,1940.5,1.20164385]
[1770942002633,1.17423,1941.6,1940.5,1.20164385]
[1770942003935,1.17423,1941.4,1940.5,1.20164385]
[1770942004129,1.17423,1941.2,1940.5,0.00550466]
[1770942004530,1.17423,1941.0,1940.5,0.00550466]
[1770942006335,1.17423,1941.0,1940.2,1.12969609]
[1770942007342,1.17423,1941.0,1940.2,1.13419928]
[1770942009541,0.59373678,1940.9,1940.2,1.13419928]
[1770942009842,1.17423,1940.8,1940.2,1.13419928]
[1770942011542,1.17423,1940.6,1940.2,1.13419928]
[1770942012552,1.17423,1940.6,1940.1,1.12969609]
[1770942013041,1.17423,1940.6,1939.7,1.12969609]
[1770942013839,1.17423,1940.6,1939.7,1.13407908]
[1770942014643,1.17423,1940.8,1939.7,1.33969464]
[1770942014839,1.76898041,1940.7,1939.7,1.33969464]
[1770942015040,1.17423,1940.7,1939.7,1.33969464]
[1770942015936,1.17423,1940.7,1939.7,1.13407908]
[1770942016138,1.17423,1940.5,1939.7,1.13407908]
[1770942018343,1.76816139,1940.4,1939.7,1.13407908]
[1770942018543,1.17423,1940.4,1939.7,1.13407908]
[1770942022245,1.17423,1940.4,1939.7,0.00438299]
[1770942022449,1.17423,1940.2,1939.7,0.00438299]
[1770942023139,1.17423,1940.2,1939.7,1.13407908]
[1770942023344,1.17423,1940.3,1939.7,1.13407908]
[1770942023957,1.17423,1940.6,1939.7,1.13407908]
[1770942027850,1.17840006,1940.9,1939.7,1.13407908]
[1770942028052,1.76662822,1940.8,1939.7,1.13407908]
[1770942028245,1.17423,1940.8,1939.9,1.12969609]
[1770942028544,0.00417006,1940.9,1939.8,0.25797]
[1770942028545,0.00417006,1940.9,1940.1,1.12969609]
[1770942028940,1.17423,1941.3,1940.3,1.12969609]
[1770942029350,1.17423,1941.3,1940.4,1.12969609]
[1770942030048,1.17962557,1941.3,1940.4,1.12969609]
[1770942031353,0.00539557,1941.3,1940.4,1.12969609]
[1770942031557,1.09595995,1941.3,1940.4,1.12969609]
[1770942034351,0.00539557,1941.3,1940.4,1.12969609]
[1770942034748,0.00539557,1941.3,1940.3,15.25857728]
[1770942034749,1.13723435,1941.7,1940.7,1.15277187]
[1770942035351,1.13723435,1941.9,1940.7,1.15277187]
[1770942035552,1.13723435,1942.1,1940.9,1.15277187]
[1770942035752,7.47794435,1941.5,1940.5,7.50304611]
[1770942036056,7.47794435,1941.5,1939.3,6.34788]
[1770942036057,1.13723435,1941.3,1940.4,1.15277187]
[1770942040559,1.13723435,1941.5,1940.4,1.15277187]
[1770942042957,1.13723435,1941.5,1940.5,0.25788]
[1770942043156,1.13723435,1941.7,1940.7,1.15277187]
[1770942052872,1.13723435,1941.7,1940.6,1.15277187]
[1770942056185,1.13723435,1941.5,1940.6,1.15277187]
[1770942060883,3.31697162,1941.7,1940.3,1.10713356]
[1770942060884,1.19042276,1941.3,1940.3,1.10713356]
[1770942061575,1.19042276,1941.1,1940.3,1.10713356]
[1770942061984,3.31701162,1941.4,1940.3,1.10713356]
[1770942062290,1.19042276,1941.2,1940.3,1.10713356]
[1770942062588,1.19042276,1941.0,1940.2,1.10713356]
[1770942074694,1.19042276,1941.2,1940.2,1.10713356]
[1770942076290,1.19042276,1941.5,1940.2,1.36505356]
[1770942076485,51.73091293,1941.7,1940.3,1.10713356]
[1770942076486,1.19042276,1941.4,1940.3,1.10713356]
[1770942076685,1.19042276,1941.4,1940.4,1.10713356]
[1770942080501,1.19042276,1941.6,1940.4,1.10713356]
[1770942080700,1.19042276,1941.6,1940.5,1.10713356]
[1770942081905,1.19042276,1941.4,1940.5,1.10713356]
[1770942084704,1.19042276,1941.2,1940.5,1.10713356]
[1770942088403,1.19042276,1941.2,1940.3,1.10713356]
[1770942088704,1.19042276,1941.0,1940.1,1.10713356]
[1770942089100,1.19042276,1940.8,1940.1,1.10713356]
[1770942091104,1.19042276,1940.8,1939.9,1.11485253]
[1770942091304,1.13578569,1940.6,1939.8,6.36685253]
[1770942091510,1.13999668,1940.6,1939.8,1.11485253]
[1770942093012,1.14015044,1940.4,1939.7,0.00438299]
[1770942093510,1.14015044,1940.4,1939.0,7.67456512]
[1770942093511,1.14015044,1940.2,1939.0,11.34732283]
[1770942093808,1.14015044,1940.0,1939.0,1.14432283]
[1770942094308,1.14015044,1940.0,1939.0,1.14883682]
[1770942094908,1.14015044,1939.8,1939.0,1.14883682]
[1770942097013,3.05925162,1940.3,1939.0,1.14883682]
[1770942097314,1.14015044,1940.1,1939.0,1.14883682]
[1770942097806,1.14015044,1940.3,1939.0,1.14883682]
[1770942099003,1.14015044,1940.3,1939.2,1.14432283]
[1770942099209,1.14015044,1940.3,1939.3,1.14432283]
[1770942100811,1.14015044,1940.5,1939.3,1.14432283]
[1770942106210,0.00421099,1940.6,1938.4,1.14432283]
[1770942106211,1.14015044,1939.5,1938.4,1.14432283]
[1770942106522,1.14015044,1939.1,1937.8,1.14432283]
[1770942106818,1.14015044,1939.1,1938.0,1.14432283]
[1770942107219,1.14511654,1939.1,1938.3,1.14432283]
[1770942107622,1.14511654,1939.1,1938.3,1.14883682]
[1770942107811,1.14511654,1939.1,1938.3,1.14432283]
[1770942108218,1.14511654,1939.1,1938.0,0.00491295]
[1770942108219,1.14511654,1939.1,1938.1,1.14432283]
[1770942110324,7.75176654,1939.1,1938.0,0.00491295]
[1770942110523,1.14015044,1938.7,1938.0,0.00491295]
[1770942119121,1.14015044,1938.7,1938.0,1.14923578]
[1770942119725,1.14015044,1938.9,1938.0,1.14923578]
[1770942119928,1.14015044,1938.9,1938.3,1.14432283]
[1770942120325,1.14015044,1938.9,1938.4,1.08998788]
[1770942120525,1.14015044,1938.9,1938.4,1.08547389]
[1770942120722,1.19332816,1939.1,1938.4,1.08547389]
[1770942120931,1.19332816,1939.1,1938.4,0.00451399]
[1770942121332,1.19332816,1939.1,1938.2,1.08547389]
[1770942121523,1.19332816,1939.1,1938.2,1.08998788]
[1770942121723,1.19332816,1939.1,1938.2,0.00451399]
[1770942122018,1.19332816,1939.1,1938.2,1.08998788]
[1770942122328,1.19332816,1939.1,1938.2,0.00451399]
[1770942122928,1.18836206,1938.9,1938.0,0.00491295]
[1770942123228,1.18836206,1938.9,1938.0,1.09038684]
[1770942123528,1.18836206,1938.7,1938.0,1.09038684]
[1770942123828,1.18836206,1938.7,1938.0,1.09490083]
[1770942124028,1.18836206,1938.7,1938.0,0.00491295]
[1770942124824,1.18836206,1938.7,1938.0,0.00942694]
[1770942126434,1.18836206,1938.7,1938.0,1.09490083]
[1770942126624,1.18836206,1938.7,1938.1,1.08998788]
[1770942126825,1.18836206,1939.0,1938.1,1.08547389]
[1770942127128,1.18836206,1939.0,1938.3,1.08547389]
[1770942127527,1.18836206,1939.0,1938.4,0.00451399]
[1770942127932,1.18836206,1939.0,1938.3,1.08547389]
[1770942128129,1.18836206,1939.0,1938.4,0.00451399]
[1770942128529,1.18836206,1939.0,1938.5,0.00451399]
[1770942128731,1.18836206,1939.0,1938.3,1.08547389]
[1770942129034,1.18836206,1939.0,1938.4,0.00451399]
[1770942129435,1.18836206,1939.0,1938.3,1.08547389]
[1770942129733,1.18836206,1939.0,1938.4,0.00451399]
[1770942129934,1.18836206,1939.0,1938.3,1.08547389]
[1770942130136,1.18836206,1939.0,1938.4,0.00451399]
[1770942130431,1.18836206,1939.0,1938.1,1.08547389]
[1770942130735,1.18836206,1939.0,1938.0,1.09038684]
[1770942131133,1.18836206,1939.0,1938.0,0.00942694]
[1770942131335,1.18836206,1938.8,1938.0,0.00491295]
[1770942131830,1.18836206,1938.8,1938.1,0.00451399]
[1770942132631,1.18836206,1938.8,1938.0,0.00491295]
[1770942133233,1.18836206,1938.6,1938.0,0.00491295]
[1770942134031,1.18836206,1938.6,1938.0,1.09038684]
[1770942134440,1.18836206,1938.6,1938.0,0.00491295]
[1770942135435,0.54104856,1938.5,1937.7,1.08547389]
[1770942135642,1.18836206,1938.3,1937.4,1.08547389]
[1770942136340,1.18836206,1938.1,1936.9,1.08547389]
[1770942136636,3.03817661,1938.2,1936.9,1.09203446]
[1770942136637,1.18836206,1937.9,1936.9,1.09203446]
[1770942138339,1.18836206,1937.7,1936.9,1.09203446]
[1770942138539,1.19494701,1937.7,1936.9,1.09203446]
[1770942138931,0.00658495,1937.7,1936.9,1.09203446]
[1770942139439,1.19494701,1937.7,1936.9,1.09203446]
[1770942145845,0.00658495,1937.7,1936.9,1.09203446]
[1770942146547,0.00658495,1937.7,1937.1,1.08547389]
[1770942146751,6.03211447,1938.4,1937.1,1.08547389]
[1770942146752,1.18836206,1938.1,1937.1,1.08547389]
[1770942147746,1.19317214,1938.1,1937.1,1.08547389]
[1770942156760,1.19317214,1938.1,1937.2,0.25832]
[1770942156960,0.00481008,1938.1,1937.3,1.18564735]
[1770942158258,1.1340339,1938.1,1937.3,1.18564735]
[1770942159961,6.56813,1938.7,1937.5,1.18564735]
[1770942159962,1.12922382,1938.4,1937.5,1.18564735]
[1770942160954,1.13394104,1938.4,1937.5,1.18564735]
[1770942162257,1.13394104,1938.4,1937.2,7.67456512]
[1770942162452,1.13394104,1938.4,1936.4,10.53369]
[1770942162453,1.12922382,1937.2,1936.4,10.53369]
[1770942162662,1.12922382,1937.0,1936.4,16.47269221]
[1770942162961,1.12922382,1937.2,1936.6,1.18564735]
[1770942163355,1.13571026,1937.2,1936.7,15.28704486]
[1770942163662,1.13571026,1937.2,1936.7,16.47269221]
[1770942163859,1.13571026,1937.2,1936.8,14.88950945]
[1770942164360,1.13571026,1937.2,1936.9,14.88950945]
[1770942164761,1.13571026,1937.2,1937.0,14.88950945]
[1770942164962,1.13571026,1937.2,1936.9,14.88950945]
[1770942165156,1.13571026,1937.2,1936.6,0.00652126]
[1770942165560,0.59627369,1937.1,1936.6,0.00652126]
[1770942165864,5.36286659,1937.0,1936.6,0.00652126]
[1770942166060,0.01574281,1936.8,1936.2,1.43258014]
[1770942166264,0.01574281,1936.8,1936.3,0.39753541]
[1770942166465,0.01574281,1936.8,1936.0,1.42478398]
[1770942166764,0.01574281,1936.8,1936.2,1.42478398]
[1770942167166,0.01574281,1936.8,1936.3,1.86262878]
[1770942167562,0.01574281,1936.8,1936.3,0.39753541]
[1770942168160,0.01574281,1936.8,1936.2,0.00618311]
[1770942168366,0.01574281,1936.8,1936.2,0.40371852]
[1770942169067,0.01574281,1936.8,1936.3,1.45795817]
[1770942169260,0.01574281,1936.8,1936.2,0.40371852]
[1770942169667,0.01574281,1936.8,1936.2,0.00618311]
[1770942169964,0.01574281,1936.8,1935.9,1.44704171]
[1770942170467,0.01574281,1936.8,1936.0,1.84432864]
[1770942170667,0.01574281,1936.8,1936.0,1.44679323]
[1770942170962,0.01574281,1936.8,1936.2,1.44679323]
[1770942171371,0.01574281,1936.8,1936.0,3.71810311]
[1770942171372,0.01574281,1936.8,1936.4,1.44694932]
[1770942171568,0.20725693,1937.1,1936.4,1.44694932]
[1770942171868,0.20725693,1937.1,1936.5,0.39753541]
[1770942172078,0.20725693,1937.1,1936.3,1.44694932]
[1770942173072,0.20725693,1937.1,1936.5,1.4462884]
[1770942173765,0.20725693,1937.1,1936.2,1.44643192]
[1770942173968,0.21249751,1936.9,1936.2,1.84396733]
[1770942174165,0.21249751,1936.9,1936.3,1.44231433]
[1770942174972,0.21249751,1936.9,1936.0,1.44680582]
[1770942175268,0.21249751,1936.9,1936.2,0.39753541]
[1770942175468,0.21249751,1936.9,1936.1,0.39753541]
[1770942175873,0.21249751,1936.9,1936.1,1.83997963]
[1770942176073,0.21249751,1936.9,1936.2,1.48387751]
[1770942176568,0.21249751,1936.9,1936.4,1.48387751]
[1770942177165,0.21249751,1936.9,1936.5,1.4840225]
[1770942177365,0.21249751,1936.9,1936.5,1.88155791]
[1770942178166,0.12607081,1937.2,1936.7,1.49664405]
[1770942178572,0.12607081,1937.2,1936.7,1.89417946]
[1770942179471,0.12607081,1937.2,1936.8,1.49678118]
[1770942179871,0.12607081,1937.2,1936.7,0.39753541]
[1770942180565,0.00648644,1937.2,1936.8,1.51107103]
[1770942180769,0.12080082,1937.4,1936.8,1.51107103]
[1770942180969,0.12080082,1937.4,1937.0,1.51107103]
[1770942181274,0.11907365,1937.7,1937.0,1.51107103]
[1770942181466,0.12040085,1937.5,1937.1,1.51107103]
[1770942181771,0.12514605,1937.5,1937.1,1.51107103]
[1770942181970,3.05938363,1937.8,1937.2,1.51107103]
[1770942182172,0.106187,1937.9,1937.2,1.51107103]
[1770942182371,0.106187,1937.9,1937.3,0.39753541]
[1770942182968,0.11044111,1937.9,1937.4,1.51107103]
[1770942183278,0.11044111,1937.9,1937.4,1.51642254]
[1770942183576,0.1088519,1938.3,1937.8,1.51107103]
[1770942183873,0.1088519,1938.1,1937.8,1.01107103]
[1770942184073,0.6088519,1938.2,1937.8,1.40860644]
[1770942184465,0.61423552,1938.2,1937.8,0.39753541]
[1770942184978,0.61423552,1938.2,1937.4,1.51642254]
[1770942185275,0.61423552,1938.2,1937.5,1.90860644]
[1770942185574,0.61423552,1938.2,1937.5,5.62234795]
[1770942185776,0.61423552,1938.2,1937.5,1.90860644]
[1770942186173,0.61423552,1938.2,1937.6,3.71374151]
[1770942186478,0.60946484,1938.0,1937.5,1.51107103]
[1770942186674,0.60946484,1938.0,1937.6,0.39753541]
[1770942186870,0.61073365,1938.1,1937.7,1.51107103]
[1770942187070,0.61611727,1938.2,1937.7,1.51107103]
[1770942187273,0.61611727,1938.2,1937.8,5.22481254]
[1770942187469,0.61611727,1938.2,1937.8,3.71374151]
[1770942187772,0.61172046,1938.0,1937.4,1.51642254]
[1770942187972,0.61172046,1938.0,1937.5,0.39753541]
[1770942188577,0.61172046,1938.0,1937.4,0.00535151]
[1770942188776,0.61172046,1938.0,1937.4,3.71909302]
[1770942189181,0.65042627,1937.8,1937.4,3.71909302]
[1770942189378,0.65042627,1937.8,1937.4,0.00535151]
[1770942189878,0.65042627,1937.8,1937.1,1.51107103]
[1770942190172,0.65042627,1937.8,1937.2,3.71374151]
[1770942190566,0.65042627,1937.8,1937.1,1.51107103]
[1770942190567,0.65042627,1937.8,1937.3,3.71374151]
[1770942190766,0.65042627,1937.8,1937.3,0.00459438]
[1770942190973,0.65042627,1937.8,1937.4,3.71374151]
[1770942191472,0.68654051,1937.9,1937.6,3.71374151]
[1770942191671,5.53662844,1937.8,1937.5,1.51107103]
[1770942191872,0.68654051,1937.9,1937.5,1.51107103]
[1770942192073,6.22198352,1937.8,1937.6,3.71374151]
[1770942192277,0.68576967,1937.8,1937.6,3.71374151]
[1770942192577,14.00138363,1938.0,1937.7,3.21374151]
[1770942192767,5.53533446,1937.9,1937.5,1.51107103]
[1770942192971,5.53533446,1937.8,1937.6,3.21374151]
[1770942193172,10.942,1938.0,1937.3,1.59369258]
[1770942193368,0.00191431,1937.8,1937.3,1.59369258]
[1770942193572,0.00191431,1937.8,1937.5,3.21374151]
[1770942193881,0.00191431,1937.8,1937.3,1.59369258]
[1770942194083,0.00191431,1937.8,1937.3,0.00459438]
[1770942194275,5.53472124,1937.7,1937.3,0.00459438]